Cogmind - Beta 9.6 @@@ ROGUE MODE // 2020.05.25 @ 05:59:27 Player: Demise Result: Destroyed self with Grenade Launcher Performance ------------- Evolutions (0) 0 Regions Visited (2) 400 Robots Destroyed (35) 175 Value Destroyed (642) 642 Prototype IDs (0) 0 Alien Tech Used (0) 0 Bonus (0) 0 TOTAL SCORE: 1217 Bonus ------- None Cogmind --------- Core Integrity 0/250 Matter 245/300 Energy 250/250 System Corruption 0% Temperature Cool (25) Movement Treading (220) Ox3 Location -10/Mines Parts ------- > --- POWER (1) -------- Ion Engine > --- PROPULSION (2) --- Light Treads Wheel > --- UTILITY (2) ------ High-capacity Storage Unit High-capacity Storage Unit > --- WEAPON (2) ------- Grenade Launcher > --- INVENTORY (20) --- Wheel Wheel Wheel Wheel Improved Heat Sink Small Storage Unit Small Storage Unit High-capacity Storage Unit High-capacity Storage Unit High-capacity Storage Unit High-capacity Storage Unit Small Battery (100) Medium Matter Pod (50) Improved Terrain Scanner Targeting Computer ECM Suite Utility Shielding Medium Laser Datajack Mining Laser Peak State ------------ > --- POWER ------------ Light Nuclear Core > --- PROPULSION ------- Light Treads Light Treads > --- UTILITY ---------- High-capacity Storage Unit High-capacity Storage Unit > --- WEAPON ----------- Medium Laser Particle Gun > --- INVENTORY -------- Ion Engine Improved Heat Sink Small Storage Unit Small Storage Unit High-capacity Storage Unit High-capacity Storage Unit High-capacity Storage Unit High-capacity Storage Unit Small Battery Small Matter Pod Improved Terrain Scanner Targeting Computer ECM Suite Utility Shielding Grenade Launcher Datajack Mining Laser [Rating: 12] Favorites ----------- Power Light Ion Engine Engine Light Ion Engine Power Core Light Nuclear Core Propulsion Wheel Treads Light Treads Leg Aluminum Leg Wheel Wheel Utility High-capacity Storage Unit Device Improved Terrain Scanner Storage High-capacity Storage Unit Weapon Medium Laser Energy Gun Medium Laser Ballistic Gun Light Assault Rifle Launcher Grenade Launcher Build | -11 -10 -10 ------- Run | Scr Mat Min Slots Evolved . | . . . Power . | . . . Propulsion . | . . . Utility . | . . . Weapon . | . . . Parts Attached 20 | 6 13 1 Power 2 | . 2 . Engine 1 | . 1 . Core 1 | . 1 . Reactor . | . . . Propulsion 9 | 5 4 . Treads 3 | . 3 . Leg . | . . . Wheel 6 | 5 1 . Hover . | . . . Flight . | . . . Utility 4 | 1 3 . Device 1 | 1 . . Storage 3 | . 3 . Processor . | . . . Hackware . | . . . Protection . | . . . Artifact . | . . . Weapon 5 | . 4 1 Energy Gun 3 | . 3 . Energy Cannon . | . . . Ballistic Gun 1 | . 1 . Ballistic Cannon . | . . . Launcher 1 | . . 1 Special Weapon . | . . . Impact Weapon . | . . . Slashing Weapon . | . . . Piercing Weapon . | . . . Special Melee Weapon . | . . . Unidentified Prototypes . | . . . Parts Lost 8 | . 7 1 Power 1 | . 1 . Propulsion 2 | . 2 . Utility . | . . . Weapon 5 | . 4 1 Highest Loss Streak 4 | . 4 1 Average Slot Usage (%) 98 | . 98 100 Engine 10 | . 10 14 Core 3 | . 3 . Treads 10 | . 10 14 Wheel 16 | . 16 14 Storage 27 | . 27 28 Energy Gun 18 | . 18 23 Ballistic Gun 9 | . 9 . Naked Turns . | . . . Heaviest Build 75 | 11 74 75 Greatest Support 40 | 32 40 10 Greatest Overweight (x) 7 | . 7 7 Average Overweight (x) 3 | . 3 7 Largest Inventory Capacity 20 | 6 20 20 Average Capacity 17 | 6 18 20 Most Carried 20 | 6 20 20 Average Carried 15 | 5 17 20 Final Capacity 20 | 6 20 20 Final Carried 20 | 6 20 20 Class Distribution -------------------- 80% | Hauler-Mutant 19% | Mutant Dominant Class ---------------- Hauler-Mutant | -10/Materials Hauler-Mutant | -10/Mines Resources | -11 -10 -10 ----------- Run | Scr Mat Min Matter Collected 601 | 323 278 . Remotely . | . . . Salvage Created 1016 | 235 766 15 Parts 55 | 16 39 . Haulers Intercepted 2 | . 2 . Recyclers Shooed . | . . . Parts Field Recycled . | . . . Retrieved Matter . | . . . Parts Self-Destructed . | . . . Prevented . | . . . Kills | -11 -10 -10 ------- Run | Scr Mat Min Combat Hostiles Destroyed 24 | . 18 6 Guns 15 | . 15 . AOE 9 | . 3 6 Classes Destroyed 8 | 3 4 1 Worker 2 | 2 . . Tunneler 5 | 5 . . Hauler 2 | . 2 . Recycler 1 | 1 . . Watcher 1 | . 1 . Swarmer 3 | . 3 . Grunt 15 | . 15 . Assembled 6 | . . 6 Best Kill Streak 6 | 3 3 6 Combat Bots Only 6 | . 3 6 Max Kills in Single Turn 3 | 1 3 3 Gunslinging . | . . . Exploded 3 | . 3 3 Melee . | . . . Uniques/NPCs Destroyed . | . . . Combat | -11 -10 -10 -------- Run | Scr Mat Min Damage Taken 1196 | . 1008 188 Core 251 | . 188 63 Absorbed by Shields . | . . . Core Remaining (%) 100 | 100 . . Volleys Fired 110 | 26 79 5 Largest 2 | 2 2 1 Hottest 115 | 60 115 30 Shots Fired 197 | 52 140 5 Gun 192 | 52 140 . Cannon . | . . . Launcher 5 | . . 5 Special . | . . . Kinetic 87 | 26 61 . Thermal 63 | . 63 . Explosive 5 | . . 5 Electromagnetic 42 | 26 16 . Robot Hit Streak 13 | 8 13 1 Robot Miss Streak 7 | 7 4 1 Penetration Max . | . . . Secondary Targets 2 | . 2 . Max Gunslinging Chain 1 | . 1 . Shots Hit Robots 126 | 28 97 1 Core Hits 65 | 12 38 15 Critical Hits . | . . . Critical Kills . | . . . Critical Parts Destroyed . | . . . Melee Attacks . | . . . Impact . | . . . Slashing . | . . . Piercing . | . . . Sneak Attacks . | . . . Combat Hostiles . | . . . Follow-up Attacks . | . . . Damage Inflicted 2114 | 335 1256 523 Guns 1496 | 335 1161 . Cannons . | . . . Explosions 618 | . 95 523 Melee . | . . . Ramming . | . . . Kinetic 499 | 99 400 . Thermal 700 | . 700 . Explosive 523 | . . 523 Electromagnetic 392 | 236 156 . Impact . | . . . Slashing . | . . . Piercing . | . . . Highest Corruption . | . . . Average Corruption . | . . . Corruption Purged . | . . . Overload Shots . | . . . Overflow Damage 12 | . . 12 Projectiles . | . . . Explosions 12 | . . 12 Melee . | . . . Knockbacks . | . . . Impact . | . . . Kinetic . | . . . Secondary . | . . . Self-Inflicted Damage 65 | . 36 29 Shots 3 | . 1 2 Rammed . | . . . Targets Rammed . | . . . Kicked . | . . . Crushed . | . . . Highest Temperature 515 | 60 515 30 Average Temperature 98 | 31 116 23 Received Heat Transfer 559 | . 519 40 Effects 7 | . 7 . Shutdowns 1 | . 1 . Interference 4 | . 4 . Matter Decay 1 | . 1 . Short Circuit 1 | . 1 . Siege Activations . | . . . Robots Corrupted . | . . . Combat Hostiles . | . . . Parts Fried 3 | 3 . . Impact Corruptions . | . . . Robots Melted . | . . . Combat Hostiles . | . . . Parts Melted 4 | . 4 . Heat Transferred 1789 | . 1789 . Parts Sabotaged . | . . . Parts Stolen . | . . . Parts Stripped . | . . . Power Chain Reactions 1 | . 1 . Missiles Intercepted . | . . . Alert | -11 -10 -10 ------- Run | Scr Mat Min Peak Influence 218 | 40 218 15 Average Influence 84 | 22 94 2 Maximum Alert Level 1 | . 1 . Low Security (%) 98 | 100 98 100 Level 1 1 | . 1 . Level 2 . | . . . Level 3 . | . . . Level 4 . | . . . Level 5 . | . . . High Security . | . . . Max Security . | . . . Squads Dispatched 4 | . 4 . Investigation 3 | . 3 . Extermination . | . . . Reinforcement 1 | . 1 . Assault . | . . . Garrison . | . . . Intercept . | . . . Construction Impeded . | . . . Haulers Reinforced . | . . . Stealth | -11 -10 -10 --------- Run | Scr Mat Min Distress Signals . | . . . Communications Jammed . | . . . Distress Signals . | . . . Times Spotted 37 | . 23 14 Peak Tracking Total 14 | . 4 14 Tactical Retreats . | . . . Traps | -11 -10 -10 ------- Run | Scr Mat Min Traps Triggered 2 | . 2 . Indirectly . | . . . Trap Hack Attempts . | . . . Triggered . | . . . Disarmed . | . . . Reprogrammed . | . . . Reused . | . . . Traps Extracted . | . . . Installed . | . . . Triggered . | . . . Machines | -11 -10 -10 ---------- Run | Scr Mat Min Machines Disabled . | . . . Max in Single Turn . | . . . Machines Sabotaged . | . . . Garrisons Compromised . | . . . Overloaded Fab Kills . | . . . Fab Network Shutdowns . | . . . Hacking | -11 -10 -10 --------- Run | Scr Mat Min Machines Accessed 7 | . 7 . Terminals 7 | . 7 . Fabricators . | . . . Repair Stations . | . . . Recycling Units . | . . . Scanalyzers . | . . . Garrison Access . | . . . Total Hacks 23 | . 23 . Successful 7 | . 7 . Failed 16 | . 16 . Catastrophic . | . . . Database Lockouts . | . . . Manual 22 | . 22 . Terminals 23 | . 23 . Fabricators . | . . . Repair Stations . | . . . Recycling Units . | . . . Scanalyzers . | . . . Garrison Access . | . . . Terminal Hacks 3 | . 3 . Part Schematic 2 | . 2 . Unreport Threat 1 | . 1 . Fabricator Hacks . | . . . Repair Station Hacks . | . . . Recycling Unit Hacks . | . . . Scanalyzer . | . . . Garrison Access Hacks . | . . . Unauthorized Hacks 4 | . 4 . Terminals 4 | . 4 . Botnet 4 | . 4 . Fabricators . | . . . Repair Stations . | . . . Recycling Units . | . . . Scanalyzers . | . . . Garrison Access . | . . . Data Cores Recovered . | . . . Used . | . . . Hacking Detections 7 | . 7 . Full Trace Events 3 | . 3 . Feedback Events . | . . . Feedback Blocked . | . . . Robot Schematics Acquired . | . . . Robots Built . | . . . Matter . | . . . Time . | . . . Total Robot Build Rating . | . . . Part Schematics Acquired 2 | . 2 . Parts Built . | . . . Matter . | . . . Time . | . . . Total Part Build Rating . | . . . Parts Repaired . | . . . Time . | . . . Parts Recycled . | . . . Recycled Matter . | . . . Retrieved Matter . | . . . Retrieved Components . | . . . Parts Scanalyzed . | . . . Part Schematics Acquired . | . . . Parts Damaged . | . . . Bothacking | -11 -10 -10 ------------ Run | Scr Mat Min Used RIF Installer . | . . . Robots Hacked . | . . . Non-combat . | . . . Combat . | . . . Robot Hacks Applied . | . . . Relay Couplers Released . | . . . Robots Rewired . | . . . Allies Hacked . | . . . Hacks Repelled . | . . . Allies | -11 -10 -10 -------- Run | Scr Mat Min Total Allies . | . . . Largest Group . | . . . Highest-Rated Group . | . . . Highest-Rated Ally . | . . . Total Orders . | . . . Ally Attacks . | . . . Total Damage . | . . . Kills . | . . . Allies Corrupted . | . . . Allies Melted . | . . . Intel | -11 -10 -10 ------- Run | Scr Mat Min Robot Analysis Total . | . . . Derelict Logs Recovered . | . . . Drone Launches . | . . . Drone Recoveries . | . . . Exploration | -11 -10 -10 ------------- Run | Scr Mat Min Turns Passed 1404 | 153 1220 31 Spaces Moved 751 | 74 663 14 Core . | . . . Treads 146 | . 146 . Legs . | . . . Wheels 605 | 74 517 14 Hover . | . . . Flight . | . . . Fastest Speed 80 | 80 80 150 Average Speed 136 | 88 141 150 Slowest Speed 220 | 100 220 150 Overloaded Moves . | . . . Propulsion Burnouts . | . . . Robots Hopped . | . . . Cave-ins Triggered . | . . . Exploration Rate (%) 36 | 3 95 10 Regions Visited 2 Branch Regions 1 Pre-discovered Areas . | . . . Known Exits Taken . | . . . Unknown Exits Taken 2 | 1 1 . Scrap Searched . | . . . Spaces Dug 2 | . . 2 Terrain Destroyed 36 | . 3 33 Melee . | . . . Projectile . | . . . AOE 36 | . 3 33 Actions | -11 -10 -10 --------- Run | Scr Mat Min Total 948 | 117 811 20 Wait 33 | 3 30 . Move 749 | 73 662 14 Hop . | . . . Pick Up 23 | 3 20 . Fast Attach 4 | 1 3 . Attach 9 | 2 7 . Detach 2 | . 2 . Swap 7 | 3 3 1 Drop 11 | 6 5 . Fire 110 | 26 79 5 Melee . | . . . Ram . | . . . Kick . | . . . Crush . | . . . Escape Stasis . | . . . Rewire . | . . . Trap . | . . . Miscellaneous . | . . . Route ------- -11/Scrapyard -10/Materials (discovered 4 exits: [*Mat x3] / [*Min]) -10/Mines History --------- Turn | Location | Event 21 | -11/Scrapyard | Discovered new exit (range 3) 154 | -11/Scrapyard | Entered Materials 221 | -10/Materials | Discovered new exit (range 16) 582 | -10/Materials | Build established: Hauler-Mutant 605 | -10/Materials | Discovered new exit (range 15) 943 | -10/Materials | Core integrity fell below 50% 1062 | -10/Materials | Lost 4 parts (1p1n2w) 1067 | -10/Materials | Discovered new exit (range 4) 1177 | -10/Materials | Discovered new exit (range 3) 1374 | -10/Materials | Entered Mines 1387 | -10/Mines | Assembled infested the area 1401 | -10/Mines | Core integrity fell below 20% 1405 | -10/Mines | Destroyed self with Grenade Launcher Last Messages --------------- 01321_ K-01 Serf cleans the Material Compactor. 01354_ K-01 Serf cleans the Electrolysis Chamber. 01370_ Dropped Sml. Matter Pod. 01370_ Acquired Med. Matter Pod. 01371_ Extracted 50 matter. LOCATION=UNKNOWN GOAL=ESCAPE Something is scanning the area. 01387_ ALERT: Infestation in the mines, dispatching Demolisher response squad. 01397_ as-62745 destroyed. 01397_ as-56572 destroyed. 01397_ as-17771 destroyed. 01400_ as-61596 destroyed. 01401_ Particle Gun destroyed. 01401_ as-59310 destroyed. 01401_ as-25191 destroyed. 01403_ as-60818 destroyed. 01403_ Destroyed Asb. F-torch. 01404_ as-82441 powers down. 01404_ as-03605 powers down. Map ----- +----------------------------------------------------+ | ??????????????????????????????????????????? | | ??????????????????????????????????????????? | | ??????????????????????????????????????????? | | ????????????????????? #??????????????????? | | ????????????????????? ??????????????????? | | ????????????????????? ??????????????????? | | ????????????????????? ??????????????????? | | ????????????????????? ?????????##???????? | | ????????????????????? ????????? ##??????? | | ?????????????????????# ???????? ???????? | | ?????????????????????# #??????? ???????? | | ?????????????????????# #??????? ????????? | | ?????????????????????# #??????? ????????? | | ?????????????????????# #?????? #????????? | | ?????????????????????# #?????? #????????? | | ?????????????????????# #?##### ###??????? | | ????????????????????## ### # ###????? | | ???????????????????## #????? | | ???????????????????# #### #???? | | ???????????????????# ##?## ## #??? | | ???????????????????## ##?####???# #??? | | ????????????????????## ##?????????? #?? | | ?????????????????????## #??????????????? | | ?????????????????????# ##?????????????? | | ?????????????????# ### ##????????????? | | ????????????????# a@ #????????????? | | ?????????? #????????????? | | ?????????? % =%* a ##????????????? | | ??????????? =! a ##?????????????? | | ??????????? # ##??????????????? | | ???????????????# ## ###???????????????? | | ???????????????## #?##??????????????????? | | ????????????????## ??????????????????????? | | ?????????????????# ???????????????????????? | | ?????????????????#????????????????????????? | | ??????????????????????????????????????????? | | ??????????????????????????????????????????? | | ??????????????????????????????????????????? | | ??????????????????????????????????????????? | | ??????????????????????????????????????????? | | ??????????????????????????????????????????? | | ??????????????????????????????????????????? | | ??????????????????????????????????????????? | | ??????????????????????????????????????????? | | ??????????????????????????????????????????? | | ??????????????????????????????????????????? | | ??????????????????????????????????????????? | | ??????????????????????????????????????????? | | | | | +----------------------------------------------------+ Best States ------------- Heat Dissipation 25 Energy Generation 14 Energy Capacity 250 Matter Stores 300 Matter Capacity 300 Sight Range 16 Terrain Scan Range 16 Terrain Scan Density 10 Evasion (%) 44 Recoil Reduction 2 Item Schematics ----------------- Hcp. Battery | -10/Materials | Hacked Hcp. Matter Pod | -10/Materials | Hacked Robot Schematics ------------------ None Fabricated ------------ Nothing Alien Tech Used ----------------- None Achievements -------------- None Challenges ------------ None Game ------ Seed ArchitectCoreMinigun Manual? 0 Play Time 00:12:45 Cumulative 212.3 hours Start 2020.05.25 @ 05:47:19 End 2020.05.25 @ 05:59:27 Sessions 1 Manual Loads 0 Difficulty Rogue Special Mode None Game No. 275 Rogue 264 Adventurer 11 Explorer 0 Win Type - Total 0 Types 0/0/0/0/0/0/0 Lore% 51 Gallery% 65 Achievement% 45 Wizard Run 0 Options --------- ASCII 0 Keyboard 1 Movement Numpad Keybinds 0 Fullscreen 1 Font 12/Terminus Map View 83x54 Tactical HUD 1 Map Filters NONE Filters NONE Steam 1 RUN: e6896e70-b74a-4af0-bc37-62d1567d7fbc